bitfinex/quotes_ETHUSD_20251010
["timestamp","ask_amount","ask_price","bid_price","bid_amount"]
[1760135024918,2.59308093,3856.5,3856.3,2.46]
[1760135025096,2.59308093,3856.5,3855.4,2.48708811]
[1760135025097,2.59364535,3855.6,3855.4,2.48708811]
[1760135025429,0.2654578,3857.9,3855.4,2.48708811]
[1760135025726,2.59368331,3855.6,3855.4,2.48708811]
[1760135025928,3.87615184,3855.0,3850.3,1.23]
[1760135026297,2.59477412,3853.9,3850.3,1.62768275]
[1760135026824,2.59477412,3853.9,3853.7,1e-08]
[1760135027003,2.59431366,3854.6,3850.3,1.23]
[1760135027004,2.59551495,3852.8,3850.3,1.23]
[1760135027191,1.2983627,3854.4,3852.4,1e-08]
[1760135027397,3.88736955,3854.7,3852.4,1e-08]
[1760135027628,2.5904109,3860.4,3852.4,1e-08]
[1760135027629,1.21368748,3860.0,3852.4,1e-08]
[1760135027832,1.20536679,3857.2,3852.4,1e-08]
[1760135027995,1.23192986,3858.3,3852.4,1e-08]
[1760135028192,1.25543639,3858.5,3852.4,1e-08]
[1760135028392,0.011,4500.0,3852.4,1e-08]
[1760135028393,1.24681258,3858.1,3852.4,1e-08]
[1760135028591,1.23528687,3857.9,3852.4,1e-08]
[1760135028840,3.88578432,3854.9,3852.4,1.23000001]
[1760135029009,1.2472016,3852.5,3852.4,1.23000001]
[1760135029193,2.59566985,3852.6,3852.4,1e-08]
[1760135029395,0.2953772,3853.0,3852.4,1e-08]
[1760135029622,1.22034812,3860.5,3852.4,1e-08]
[1760135029805,1.22846123,3859.4,3852.4,1e-08]
[1760135030011,1.25189536,3859.6,3852.4,1.23000001]
[1760135030209,1.21562769,3858.9,3852.4,1.23000001]
[1760135030405,1.27915444,3860.3,3852.4,1.23000001]
[1760135030730,1.25076372,3860.1,3852.4,1.23000001]
[1760135030931,1.27353558,3857.0,3852.4,1.23000001]
[1760135031098,1.23648965,3859.9,3852.4,1.23000001]
[1760135031429,2.59431085,3854.6,3852.9,0.003]
[1760135031638,1.21049674,3856.3,3852.9,0.003]
[1760135031805,2.59112838,3859.4,3852.9,0.003]
[1760135031999,0.4713,3859.8,3852.9,0.003]
[1760135032000,0.16596366,3860.6,3852.9,0.003]
[1760135032201,1.28193782,3862.1,3852.9,0.003]
[1760135032504,1.28266898,3861.9,3852.9,0.003]
[1760135032707,1.28131835,3861.0,3852.9,0.003]
[1760135032901,1.26145922,3862.9,3852.9,0.003]
[1760135033104,1.28568505,3862.7,3852.9,1.233]
[1760135033330,1.24418828,3862.5,3852.9,1.233]
[1760135033546,1.22753748,3862.3,3852.9,1.233]
[1760135033701,1.21368748,3860.0,3852.9,1.233]
[1760135033901,1.21182285,3859.8,3852.9,1.233]
[1760135034207,1.24079342,3853.2,3852.9,1.233]
[1760135034453,3.87999078,3853.1,3852.9,2.463]
[1760135034597,0.4713,3857.7,3852.9,2.463]
[1760135034598,2.59488785,3853.8,3852.9,2.463]
[1760135034803,2.5952727,3853.2,3852.9,2.463]
[1760135035023,2.59496378,3853.7,3852.9,2.463]
[1760135035024,1.29800321,3858.0,3852.9,2.463]
[1760135035242,2.59200827,3858.1,3852.9,2.463]
[1760135035243,1.29598963,3858.8,3852.9,2.463]
[1760135035405,2.59522552,3853.3,3850.2,1.01133337]
[1760135035603,0.2322,3855.4,3850.2,1.01133337]
[1760135035604,0.4713,3854.6,3850.2,1.01133337]
[1760135035803,0.70296656,3854.7,3850.2,1.01133337]
[1760135036134,1.23396519,3854.5,3850.2,1.01133337]
[1760135036434,0.2322,3856.9,3850.2,1.01133337]
[1760135036435,0.35123477,3856.2,3850.2,1.01133337]
[1760135036637,1.24531131,3856.5,3850.2,1.01133337]
[1760135036932,1.21934569,3855.3,3850.2,1.01133337]
[1760135037132,2.59378501,3855.4,3850.2,1.01133337]
[1760135037133,0.4713,3861.4,3850.2,1.01133337]
[1760135037335,1.23648965,3859.9,3850.2,2.24133337]
[1760135037533,1.28234635,3859.0,3850.2,2.24133337]
[1760135037736,1.21297306,3859.2,3850.2,2.24133337]
[1760135037899,1.21368748,3860.0,3850.2,2.24133337]
[1760135038275,1.23648965,3859.9,3850.2,2.24133337]
[1760135038567,1.24268932,3859.7,3850.2,2.24133337]
[1760135038727,1.24268932,3859.7,3850.2,3.47133337]
[1760135038926,1.21562769,3858.9,3850.2,3.47133337]
[1760135039148,2.58941479,3861.9,3850.2,3.47133337]
[1760135039149,1.21368748,3860.0,3850.3,0.01328359]
[1760135039458,1.22134812,3860.5,3850.7,22.5]
[1760135039667,0.001,3860.5,3850.8,0.01800388]
[1760135039960,1.22134812,3860.5,3850.8,0.01800388]
[1760135040160,1.22134812,3860.5,3850.8,3.16800388]
[1760135040328,0.001,3860.5,3851.4,1.29822921]
[1760135040527,0.001,3860.5,3851.5,3.16581716]
[1760135040860,0.001,3860.5,3851.6,0.56692806]
[1760135041060,0.001,3860.5,3852.2,1.2979596]
[1760135041267,0.001,3860.5,3855.0,22.5]
[1760135041427,0.001,3860.5,3855.4,1.29685592]
[1760135041765,0.001,3860.5,3855.0,22.5]
[1760135041766,0.001,3860.5,3855.5,0.0179819]
[1760135041985,2.59045698,3860.4,3855.0,22.5]
[1760135042272,2.59045698,3860.4,3848.3,1.29924655]
[1760135042273,0.001,3860.5,3853.2,1.29759678]
[1760135042556,0.001,3860.5,3853.5,0.32846357]
[1760135042774,0.001,3860.5,3853.2,0.36639679]
[1760135042961,0.001,3860.5,3853.6,0.36639679]
[1760135043328,0.001,3860.5,3855.7,22.5]
[1760135043531,0.001,3860.5,3855.8,1.92]
[1760135043726,0.001,3860.5,3855.7,22.5]
[1760135043965,0.001,3860.5,3855.8,1.92]
[1760135044277,0.001,3860.5,3856.6,22.5]
[1760135044840,0.001,3860.5,3856.7,1.29644514]
[1760135045149,0.001,3860.5,3856.7,1.92]
[1760135045351,0.001,3860.5,3856.5,22.5]
[1760135045560,0.001,3860.5,3856.6,1.23]
[1760135046066,0.001,3860.5,3856.7,0.01366368]
[1760135046230,2.59051636,3860.3,3856.6,1.23]
[1760135046428,0.001,3860.5,3856.6,1.23]
[1760135046828,0.32793175,3860.0,3856.6,1.23]
[1760135047029,0.001,3860.1,3856.6,2.46]
[1760135048565,2.59067357,3860.0,3856.6,3.69]
[1760135048861,0.001,3860.1,3856.6,3.69]
[1760135050038,0.001,3860.1,3856.6,4.92]
[1760135051362,0.001,3860.1,3856.6,6.15]
[1760135051552,1.21368748,3860.0,3856.6,6.15]
[1760135052066,2.59067357,3860.0,3856.6,6.15]
[1760135052248,2.59085596,3859.8,3856.6,6.15]
[1760135052448,0.001,3860.1,3856.6,6.15]
[1760135052449,2.59093866,3859.7,3856.6,6.15]
[1760135052649,0.001,3860.1,3856.6,6.15]
[1760135052951,0.001,3860.1,3856.6,7.38]
[1760135053152,1.07534654,3860.0,3852.3,22.5]
[1760135053360,0.001,3860.1,3852.1,2.46]
[1760135053596,0.22291679,3859.9,3852.1,2.46]
[1760135053901,1.24268932,3859.7,3852.5,0.002]
[1760135054068,1.28677639,3859.5,3852.5,0.002]
[1760135054265,3.85420126,3852.6,3852.5,0.002]
[1760135054467,0.63660079,3859.4,3849.6,0.027]
[1760135054468,2.59679555,3850.9,3849.6,0.027]
[1760135054666,0.82213267,3859.4,3849.6,0.027]
[1760135054667,0.4613,3857.3,3849.6,0.027]
[1760135054892,0.33703487,3858.0,3849.6,0.027]
[1760135055079,1.27817263,3857.3,3849.6,0.027]
[1760135055280,1.28211812,3855.0,3849.6,0.027]
[1760135055481,2.59547045,3852.9,3850.8,2.46]
[1760135055798,1.27543808,3859.1,3850.8,2.46]
[1760135055993,1.28234635,3859.0,3850.9,0.01711872]
[1760135056194,1.28234635,3859.0,3850.8,2.46]
[1760135056195,1.29598963,3858.8,3850.8,2.46]
[1760135056496,2.03824747,3858.7,3850.8,2.46]
[1760135056673,1.27767528,3858.2,3850.8,3.69]
[1760135057034,0.30502091,3858.1,3850.8,3.69]
[1760135057299,2.5910949,3860.9,3850.8,3.69]
[1760135057300,1.28677639,3859.5,3850.8,3.69]
[1760135057468,1.21368748,3860.0,3850.8,3.69]
[1760135057671,2.59450162,3854.4,3850.8,3.69]
[1760135057975,1.26262755,3855.1,3850.8,3.69]
[1760135058175,1.28677639,3859.5,3850.8,4.92]
[1760135058398,1.21368748,3860.0,3850.9,0.01097505]
[1760135058587,1.21368748,3860.0,3850.8,4.92]
[1760135058787,1.21182285,3859.8,3850.8,4.92]
[1760135059096,2.59677522,3851.0,3850.8,4.92]
[1760135059294,1.29542804,3857.4,3850.8,4.92]
[1760135059495,0.22817221,3859.7,3850.8,6.15]
[1760135059496,0.4613,3858.9,3850.8,6.15]
[1760135059702,1.27192656,3858.7,3850.8,6.15]
[1760135059868,1.2916163,3859.3,3850.8,6.15]
[1760135060064,1.27543808,3859.1,3850.8,6.15]
[1760135060268,0.4613,3859.0,3850.8,6.15]
[1760135060470,2.59715888,3850.4,3849.6,0.027]
[1760135060915,2.59715888,3850.4,3850.2,4.70133337]
[1760135061117,2.59726767,3850.2,3850.1,1e-08]
[1760135061318,1.21049674,3856.3,3850.1,1e-08]
[1760135061501,2.59720653,3850.3,3850.1,1e-08]
[1760135062006,1.23528687,3857.9,3850.1,1e-08]
[1760135062207,1.23528687,3857.9,3850.1,1.23000001]
[1760135062623,1.22846123,3859.4,3850.1,1.23000001]
[1760135062906,1.21934569,3855.3,3850.1,1.23000001]
[1760135063108,1.23504091,3860.8,3850.1,1.23000001]
[1760135063306,1.23648965,3859.9,3850.2,0.02129476]
[1760135063508,1.21182285,3859.8,3850.2,0.02129476]
[1760135063821,2.59100919,3859.5,3850.1,2.46000001]
[1760135063987,2.5901927,3860.8,3850.1,2.46000001]
[1760135064185,1.21368748,3860.0,3850.1,2.46000001]
[1760135064690,1.23504091,3860.8,3850.2,0.26553865]
[1760135064892,2.59057627,3860.2,3850.3,0.025972]
[1760135065089,2.59058564,3860.2,3850.4,0.53896689]
[1760135065314,1.24268932,3859.7,3852.8,22.5]
[1760135065518,0.001,3860.9,3852.9,0.30315979]
[1760135065519,2.59067357,3860.0,3852.9,0.30315979]
[1760135065692,0.001,3860.9,3852.9,0.30315979]
[1760135066010,0.001,3860.9,3853.0,0.59101097]
[1760135066221,0.001,3860.9,3853.1,0.01669112]
[1760135066382,0.001,3860.9,3855.0,22.5]
[1760135066585,0.001,3860.9,3855.1,2.2270084]
[1760135066787,0.001,3860.9,3855.2,0.29166675]
[1760135066981,0.001,3860.9,3855.3,0.27157506]
[1760135067288,0.001,3860.9,3858.8,22.5]
[1760135067704,0.001,3860.9,3858.8,23.73]
[1760135068318,0.001,3860.9,3860.0,22.5]
[1760135068710,0.001,3860.9,3860.0,23.10074491]
[1760135068909,0.001,3860.9,3860.0,24.35159636]
[1760135069297,0.001,3860.9,3860.1,0.61934636]
[1760135069615,0.001,3860.9,3860.2,0.31965771]
[1760135069815,0.001,3860.9,3860.3,0.28643031]
[1760135070195,0.001,3860.9,3860.8,22.5]
[1760135070395,0.001,3860.9,3860.8,22.78643031]
[1760135070608,0.001,3860.9,3860.8,22.5]
[1760135070828,0.001,3860.9,3860.8,22.78643031]
[1760135071120,0.001,3860.9,3860.8,22.5]
[1760135071904,0.001,3860.9,3860.8,23.73]
[1760135072409,1.23086021,3875.2,3860.9,0.73322161]
[1760135072595,0.2194,3882.8,3860.9,0.89109708]
[1760135072596,0.17783989,3875.4,3860.9,0.89109708]
[1760135072796,1.2160215,3874.5,3861.2,1.22838175]
[1760135073001,1.24950314,3874.3,3861.4,1.5538281]
[1760135073197,1.2954421,3874.1,3861.4,1.82402269]
[1760135073435,1.2954421,3874.1,3861.2,1.23]
[1760135073436,1.2410951,3873.5,3866.3,22.5]
[1760135073599,1.23086021,3875.2,3866.3,22.5]
[1760135073993,0.01291,3875.3,3866.3,22.5]
[1760135074188,0.01291,3875.3,3867.6,22.5]
[1760135074403,2.59336733,3875.3,3867.6,22.5]
[1760135074595,1.26636938,3875.0,3867.6,23.73]
[1760135074803,2.58186426,3873.2,3867.6,23.73]
[1760135075005,0.38877752,3875.0,3867.6,23.73]
[1760135075428,0.01291,3875.3,3867.9,22.5]
[1760135075429,2.58057856,3875.1,3867.9,22.5]
[1760135075602,0.01291,3875.3,3867.9,22.5]
[1760135076140,0.01291,3875.3,3867.9,23.73]
[1760135076330,3.81142152,3875.2,3868.6,22.5]
[1760135076638,2.58201661,3873.0,3868.6,22.5]
[1760135076856,2.58176527,3873.4,3868.6,22.5]
[1760135076857,2.58175791,3873.4,3868.6,22.5]
[1760135077012,0.4613,3878.2,3868.6,22.5]
[1760135077208,0.4613,3878.2,3867.9,1.23]
[1760135077209,2.5933643,3875.3,3868.8,22.5]
[1760135077407,0.01291,3875.3,3868.8,22.5]
[1760135077635,0.01291,3875.3,3868.9,0.00606967]
[1760135077802,1.23086021,3875.2,3868.9,0.00606967]
[1760135078007,2.5933621,3875.3,3868.9,0.00606967]
[1760135078008,2.58131837,3874.0,3868.9,0.00606967]
[1760135078330,0.01291,3875.3,3869.1,22.5]
[1760135078519,2.58057856,3875.1,3869.1,22.5]
[1760135078842,0.01291,3875.3,3869.1,22.5]
[1760135079000,2.58208283,3872.9,3869.1,23.73]
[1760135079205,1.23086021,3875.2,3869.1,1.23]
[1760135079847,1.00648843,3875.1,3867.9,1.23]
[1760135079999,2.5853154,3868.0,3867.9,1.23]
[1760135080201,2.58218847,3872.7,3863.9,17.805]
[1760135080402,0.4343,3873.3,3863.9,17.805]
[1760135080403,2.5853154,3868.0,3867.9,1.23]
[1760135080748,2.5853154,3868.0,3863.9,17.805]
[1760135080749,1.2954421,3874.1,3864.0,0.18211065]
[1760135080930,2.59338448,3875.3,3863.9,17.805]
[1760135080931,1.2160215,3874.5,3863.9,17.805]
[1760135081105,1.21118167,3873.9,3863.9,17.805]
[1760135081305,1.28390466,3873.7,3864.8,19.0829]
[1760135081600,1.23086021,3875.2,3864.8,19.0829]
[1760135081812,1.23086021,3875.2,3864.8,20.3129]
[1760135082303,2.58294665,3871.6,3866.6,22.5]
[1760135082506,2.58301073,3871.5,3866.6,22.5]
[1760135082726,2.58057856,3875.1,3866.6,22.5]
[1760135083034,0.01291,3875.3,3866.6,22.5]
[1760135083202,1.23086021,3875.2,3866.6,23.73]
[1760135083415,0.01291,3875.3,3867.0,22.5]
[1760135083632,2.58051197,3875.2,3867.1,0.01965357]
[1760135083945,0.01291,3875.3,3867.1,0.01965357]
[1760135084310,0.01291,3875.3,3867.3,15.773]
[1760135084509,0.01291,3875.3,3867.3,17.003]
[1760135084812,2.58166667,3873.5,3867.3,17.003]
[1760135085007,0.01291,3875.3,3867.3,17.003]
[1760135085341,2.59338431,3875.3,3868.7,22.5]
[1760135085521,0.01291,3875.3,3868.7,22.5]
[1760135085724,0.13479994,3875.2,3868.8,0.57623349]
[1760135085939,2.58127519,3874.1,3868.7,23.73]
[1760135086139,2.58128406,3874.1,3868.7,23.73]
[1760135086438,0.13479994,3875.2,3870.0,22.5]
[1760135086639,0.01291,3875.3,3870.0,22.5]
[1760135087339,1.23086021,3875.2,3870.1,20.606]
[1760135087548,3.87665532,3874.9,3870.1,20.606]
[1760135087753,2.58213307,3872.8,3870.1,20.606]
[1760135087919,2.58071176,3874.9,3870.1,20.606]
[1760135088251,0.001,3875.1,3870.0,1.23]
[1760135088647,0.001,3875.1,3870.0,2.46]
[1760135088847,2.58071176,3874.9,3870.0,2.46]
[1760135089158,0.001,3875.1,3870.0,2.46]
[1760135089823,0.001,3875.1,3870.0,3.69]
[1760135090032,2.58319409,3871.2,3870.0,3.69]
[1760135090225,1.26636938,3875.0,3870.0,3.69]
[1760135090447,1.21118167,3873.9,3870.0,3.69]
[1760135090728,2.58391256,3870.1,3870.0,3.69]
[1760135090928,0.001,3875.1,3870.0,3.69]
[1760135091163,1.26636938,3875.0,3870.0,3.69]
[1760135091454,1.22885249,3875.1,3870.0,4.92]
[1760135091655,0.001,3875.1,3870.0,4.92]
[1760135091866,1.24544333,3873.3,3870.0,4.92]
[1760135092071,2.58386827,3870.2,3870.0,4.92]
[1760135092230,1.24544333,3873.3,3870.0,4.92]
[1760135092429,1.28012375,3873.0,3870.0,4.92]
[1760135092761,1.2489117,3876.4,3870.0,4.92]
[1760135092930,0.13473272,3872.9,3870.0,6.15]
[1760135093264,4.28917735,3877.0,3870.0,6.15]
[1760135093459,1.25114714,3872.5,3870.0,6.15]
[1760135093662,1.25114714,3872.5,3868.7,1.23]
[1760135093663,1.27026924,3874.6,3868.7,1.23]
[1760135093864,1.26143029,3874.2,3861.0,0.00171]
[1760135094160,2.58537098,3868.0,3860.0,1.23]
[1760135094361,1.25721917,3868.8,3867.3,1.23]
[1760135094616,0.79018833,3874.1,3867.3,1.23]
[1760135094617,1.28928358,3869.4,3867.3,1.23]
[1760135094742,0.4526,3874.1,3862.3,22.5]
[1760135094743,2.58618084,3866.8,3862.3,22.5]
[1760135094944,1.27196214,3870.8,3862.3,22.5]
[1760135095150,2.5861846,3866.7,3862.3,22.5]
[1760135095383,1.98496441,3870.7,3861.8,19.35]
[1760135095670,1.2000098,3870.5,3861.8,19.35]
[1760135095875,2.58694928,3865.6,3864.9,0.0113333]
[1760135096165,2.58694822,3865.6,3861.9,0.0113333]
[1760135096367,0.4526,3871.8,3861.9,0.0113333]
[1760135096368,1.230634,3871.2,3862.2,18.716]
[1760135096552,2.58738906,3864.9,3862.3,0.01133212]
[1760135096741,2.58737477,3865.0,3862.3,0.01133212]
[1760135096944,2.58737865,3865.0,3862.2,18.716]
[1760135097148,2.58489697,3868.7,3864.9,1.44]
[1760135097445,1.26636938,3875.0,3864.9,1.44]
[1760135097636,2.58177781,3873.3,3864.8,2.46]
[1760135097836,1.2160215,3874.5,3864.8,2.46]
[1760135098151,1.28847186,3874.8,3864.8,2.46]
[1760135098371,0.77817479,3874.7,3864.9,22.5]
[1760135098578,1.2160215,3874.5,3864.9,22.5]
[1760135098778,2.58111142,3874.3,3864.9,22.5]
[1760135098965,1.27026924,3874.6,3864.9,22.5]
[1760135099166,1.24422957,3874.4,3864.9,22.5]
[1760135099361,1.70210314,3874.3,3864.8,3.69]
[1760135099582,2.58738906,3864.9,3864.8,3.69]
[1760135099763,1.24886906,3871.9,3864.8,3.69]
[1760135099958,1.29064446,3873.1,3864.8,4.92]
[1760135100159,2.58519138,3868.2,3864.8,4.92]
[1760135100461,2.58582509,3867.3,3864.8,2.92]
[1760135100673,1.28914014,3873.6,3864.8,2.92]
[1760135100859,1.21808464,3876.0,3864.8,2.92]
[1760135101183,0.21311536,3873.5,3864.8,2.92]
[1760135101370,0.77835448,3874.1,3864.9,0.0217208]
[1760135101574,2.58064582,3875.0,3865.0,0.02172023]
[1760135101782,2.57960863,3876.6,3865.0,0.02172023]
[1760135102130,1.28652376,3878.4,3864.8,4.15]
[1760135102131,0.18842518,3875.0,3864.8,4.15]
[1760135102300,0.4526,3874.9,3864.9,0.02587389]
[1760135102584,0.4526,3874.9,3864.8,4.15]
[1760135102585,5.16195638,3874.5,3864.8,4.15]
[1760135102790,1.47689704,3874.8,3864.8,5.38]
[1760135102791,1.24950314,3874.3,3864.8,5.38]
[1760135103089,2.58738906,3864.9,3864.8,5.38]
[1760135103260,0.4526,3870.1,3860.9,0.002]
[1760135103453,1.27223469,3866.1,3860.9,0.002]
[1760135103671,2.58811725,3863.9,3860.9,0.002]
[1760135103855,2.58818725,3863.8,3860.9,0.002]
[1760135104176,0.77955386,3867.6,3860.9,0.002]
[1760135104177,1.29124738,3867.5,3861.2,2.46]
[1760135104376,1.2466129,3869.7,3861.2,2.46]
[1760135104585,1.29126184,3869.1,3861.2,2.46]
[1760135104792,3.86247608,3864.7,3861.2,2.46]
[1760135105089,1.24978498,3864.3,3861.2,2.46]
[1760135105269,1.25439208,3867.4,3861.2,2.46]
[1760135105467,1.2466129,3869.7,3861.2,3.69]
[1760135105667,0.77950727,3867.7,3861.2,3.69]
[1760135105920,0.2182062,3868.6,3861.2,3.69]
[1760135106204,0.2182062,3870.5,3861.2,3.69]
[1760135106374,0.77889809,3870.8,3861.2,3.69]
[1760135106575,0.2182062,3871.4,3861.2,3.69]
[1760135106792,2.58317834,3871.2,3864.4,0.002]
[1760135106963,2.58286213,3871.7,3864.4,0.002]
[1760135107296,1.26636938,3875.0,3864.4,0.002]
[1760135107497,0.77849182,3872.6,3864.4,0.002]
[1760135107662,2.58319996,3871.2,3864.4,0.002]
[1760135108008,0.77849182,3872.6,3864.4,0.002]
[1760135108009,1.26636938,3875.0,3864.4,0.002]
[1760135108304,0.4338,3874.9,3864.4,1.232]
[1760135108604,0.77831611,3874.9,3864.4,1.232]
[1760135109094,1.28847186,3874.8,3864.4,1.232]
[1760135109297,3.35902893,3874.9,3865.4,22.5]
[1760135109505,0.77831611,3874.9,3865.5,1.92]
[1760135109697,0.77831611,3874.9,3865.6,1.27758724]
[1760135109886,0.001,3875.1,3865.7,0.34672659]
[1760135110199,0.001,3875.1,3865.8,0.26299838]
[1760135110200,3.35822897,3875.0,3865.8,0.26299838]
[1760135110367,0.77758381,3875.0,3868.6,22.5]
[1760135110908,0.77758381,3875.0,3868.6,23.73]
[1760135111494,0.001,3875.1,3870.0,22.5]
[1760135112175,0.001,3875.1,3870.0,23.73]
[1760135112495,0.001,3875.1,3870.5,21.6459]
[1760135112672,1.29594356,3874.9,3870.5,21.6459]
[1760135112871,2.68436952,3875.0,3870.5,21.6459]
[1760135113084,1.24422957,3874.4,3870.5,21.6459]
[1760135113285,1.29594356,3874.9,3870.0,1.23]
[1760135113508,2.58308562,3871.4,3870.0,1.23]
[1760135113707,1.28914014,3873.6,3870.0,2.46]
[1760135113921,1.29377643,3874.7,3870.0,2.46]
[1760135114216,2.58175651,3873.4,3870.0,2.46]
[1760135114405,2.5815129,3873.7,3870.0,2.46]
[1760135114608,0.001,3875.1,3870.0,2.46]
[1760135114994,0.27432431,3869.4,3864.4,2.462]
[1760135115294,0.27432431,3869.4,3864.0,0.003]
[1760135115295,0.77803049,3873.6,3864.0,0.003]
[1760135115296,2.58792474,3864.1,3864.0,0.003]
[1760135115495,0.13485045,3864.6,3864.0,0.003]
[1760135115896,0.77967947,3864.1,3864.0,0.003]
[1760135116309,0.77967947,3864.1,3856.8,22.5]
[1760135116310,2.58853897,3863.2,3858.4,22.5]
[1760135116509,0.77973418,3866.3,3858.4,22.5]
[1760135116821,0.4338,3866.2,3858.4,22.5]
[1760135117028,2.59040513,3860.4,3858.4,22.5]
[1760135117326,0.78034264,3866.3,3856.7,22.5]
[1760135117528,1.26505412,3867.6,3856.7,22.5]
[1760135117731,2.59023317,3860.7,3860.0,2.46]
[1760135118023,0.78021682,3861.0,3860.0,2.46]
[1760135118200,1.22242549,3867.9,3860.0,2.46]
[1760135118530,1.29108834,3862.2,3856.8,22.5]
[1760135118700,2.58872867,3862.9,3856.8,22.5]
[1760135118701,2.59141183,3859.0,3856.8,22.5]
[1760135118906,2.59137309,3859.0,3856.8,22.5]
[1760135119100,2.59206826,3858.0,3851.3,1.23673883]
[1760135119348,0.4338,3864.2,3852.0,0.34487655]
[1760135119349,2.59262339,3857.1,3852.0,0.34487655]
[1760135119544,1.23375272,3864.1,3853.8,19.014]
[1760135119747,2.59384344,3855.3,3853.8,19.014]
[1760135119943,0.78068989,3858.0,3846.2,1.24276502]
[1760135119944,2.59280657,3856.9,3846.2,1.24276502]
[1760135120218,2.59280657,3856.9,3842.3,1.56152785]
[1760135120219,1.23504091,3860.8,3849.8,1.27515087]
[1760135120421,1.28135829,3863.9,3852.9,2.46]
[1760135120643,1.23460275,3863.7,3852.9,2.46]
[1760135120823,1.27597593,3863.5,3852.9,2.46]
[1760135121121,2.5953723,3853.1,3852.9,2.46]
[1760135121293,2.5959003,3852.3,3849.7,15.4849]
[1760135121496,2.59556289,3852.8,3849.7,15.4849]
[1760135121690,2.59430753,3854.6,3852.9,1.23]
[1760135121890,2.59358025,3855.7,3852.9,1.23]
[1760135122202,1.28266898,3861.9,3852.9,1.23]
[1760135122535,3.06468381,3925.9,3852.9,1.23]
[1760135122536,1.23733615,3861.7,3852.9,1.23]
[1760135122739,1.27946514,3861.5,3852.9,1.23]
[1760135122919,0.24411958,3861.6,3852.9,1.23]
[1760135123223,0.78053349,3861.8,3852.9,1.23]
[1760135123224,2.59152602,3858.8,3852.9,2.46]
[1760135123436,1.23733615,3861.7,3854.3,16.252]
[1760135123739,1.21844718,3865.2,3854.3,16.252]
[1760135123905,0.78012552,3861.6,3854.3,16.252]
[1760135124231,1.21972531,3867.1,3856.1,22.5]
[1760135124399,1.24444653,3866.9,3856.1,22.5]
[1760135124600,0.77989939,3863.6,3856.1,22.5]
[1760135125417,2.58832664,3863.5,3857.8,22.5]
[1760135125625,2.58936397,3862.0,3857.8,22.5]
[1760135125826,2.58761317,3864.6,3857.8,23.73]
[1760135126026,1.28928358,3869.4,3857.8,23.73]
[1760135126241,0.7796511,3863.7,3859.7,21.907]
[1760135126443,2.58767547,3864.5,3859.7,21.907]
[1760135126444,2.58840623,3863.4,3859.7,21.907]
[1760135126611,1.27196214,3870.8,3859.7,21.907]
[1760135126812,0.77938981,3865.1,3859.7,21.907]
[1760135127039,1.27246692,3868.0,3859.8,1.92]
[1760135127222,2.5865358,3866.2,3859.8,1.92]
[1760135127402,0.77892842,3867.4,3862.5,22.5]
[1760135127403,3.36464773,3867.4,3862.5,22.5]
[1760135127729,2.58420527,3869.7,3862.5,22.5]
[1760135127730,1.21317841,3872.8,3862.5,22.5]
[1760135127900,0.77874443,3868.5,3862.5,22.5]
[1760135128313,2.58379851,3870.3,3862.6,22.5]
[1760135128535,0.77860093,3869.2,3862.6,22.5]
[1760135128836,1.23758744,3869.0,3862.6,22.5]
[1760135129129,1.29126184,3869.1,3862.6,22.5]
[1760135129330,2.58738644,3865.0,3860.6,1.23]
[1760135129530,2.58822911,3863.7,3860.6,1.23]
[1760135129831,1.29031914,3869.5,3860.6,1.23]
[1760135130031,1.23758744,3869.0,3860.6,2.46]
[1760135130329,1.23229129,3864.2,3860.6,2.46]
[1760135130527,0.77954373,3864.3,3860.6,2.46]
[1760135130729,1.23229129,3864.2,3860.6,2.46]
[1760135130929,2.59017135,3860.8,3860.6,2.46]
[1760135131129,2.59019801,3860.8,3860.6,2.46]
[1760135131308,2.59019801,3860.8,3860.6,3.69]
[1760135131706,0.78006669,3861.6,3859.7,1.23]
[1760135131934,0.78006669,3861.6,3856.3,16.686]
[1760135132098,0.4338,3865.8,3856.3,16.686]
[1760135132099,2.59040513,3860.4,3856.3,16.686]
[1760135132302,2.59040513,3860.4,3853.5,1.23]
[1760135132303,0.78028581,3862.6,3855.7,15.8369]
[1760135132503,0.78028581,3862.6,3857.8,2.46]
[1760135133337,2.58997097,3861.1,3857.8,2.46]
[1760135133511,1.23733615,3861.7,3857.8,2.46]
[1760135133512,2.59128862,3859.1,3857.8,2.46]
[1760135133712,2.59144046,3858.9,3857.8,2.46]
[1760135133911,1.28193782,3862.1,3857.8,2.46]
[1760135134126,2.59204457,3858.0,3857.8,3.69]
[1760135134528,2.59203974,3858.0,3857.8,3.69]
[1760135134715,2.58792474,3864.1,3857.8,3.69]
[1760135135036,2.59205298,3858.0,3857.8,3.69]
[1760135135204,2.59207458,3858.0,3857.8,3.69]
[1760135135406,2.58984474,3861.3,3857.8,3.69]
[1760135135407,2.58950547,3861.8,3857.8,4.92]
[1760135135648,1.2466129,3869.7,3857.8,4.92]
[1760135135822,2.59208377,3857.9,3857.8,4.92]
[1760135136336,1.27946514,3861.5,3857.8,4.92]
[1760135136535,2.59183941,3858.3,3857.8,4.92]
[1760135136735,2.59202197,3858.0,3857.8,6.13786346]
[1760135137034,2.59172556,3858.5,3857.8,6.13786346]
[1760135137235,2.59168544,3858.5,3857.8,6.13786346]
[1760135137435,2.58711445,3865.4,3857.8,6.13786346]
[1760135137436,2.58799171,3864.0,3857.8,6.13786346]
[1760135137638,0.78043196,3859.7,3857.8,6.13786346]
[1760135137825,2.59094206,3859.6,3857.8,6.13786346]